bitfinex/quotes_ETHUSD_20260111
["timestamp","ask_amount","ask_price","bid_price","bid_amount"]
[1768166065758,0.0008036,3111.8,3111.2,0.91055947]
[1768166066555,0.96580551,3111.8,3111.1,0.255]
[1768166066760,0.96580551,3111.8,3111.2,0.43799485]
[1768166073477,0.001,3111.5,3111.2,0.43799485]
[1768166073788,0.001,3111.5,3111.2,1.34855432]
[1768166074623,0.001,3111.5,3111.2,0.43799485]
[1768166075214,0.001,3111.5,3111.1,0.255]
[1768166080319,0.001,3111.5,3111.1,1.16161976]
[1768166080523,0.001,3111.5,3111.2,0.90661976]
[1768166081603,0.001,3111.5,3111.1,0.255]
[1768166081808,0.001,3111.5,3111.1,1.16161976]
[1768166082012,0.001,3111.5,3111.2,0.43759828]
[1768166096539,0.001,3111.5,3111.2,0.90661976]
[1768166097539,0.001,3111.5,3111.1,0.255]
[1768166102350,0.001,3111.5,3111.1,0.002]
[1768166102529,0.90233705,3111.5,3111.1,0.002]
[1768166102841,0.90233705,3111.5,3110.8,0.002]
[1768166103346,0.90133705,3111.3,3110.8,0.002]
[1768166105253,0.0008036,3111.8,3111.3,0.92935515]
[1768166105458,0.001,3112.1,3111.6,0.92935515]
[1768166111448,0.001,3112.1,3111.6,1.34376627]
[1768166112365,0.001,3112.1,3111.6,0.41441112]
[1768166112866,0.96387071,3112.1,3111.4,0.95981324]
[1768166113472,0.96387071,3112.1,3111.4,4.17379508]
[1768166113772,0.96387071,3112.1,3111.4,3.21478552]
[1768166114367,0.96387071,3112.1,3111.4,0.00080368]
[1768166115765,0.96287071,3112.0,3111.4,0.00080368]
[1768166119356,0.96287071,3112.0,3111.4,0.4434917]
[1768166122495,0.001,3112.1,3111.4,0.4434917]
[1768166122496,0.001,3112.4,3112.1,0.95900956]
[1768166122785,0.96287071,3113.2,3112.3,0.95084952]
[1768166123164,0.96287071,3113.1,3112.3,0.95084952]
[1768166123367,0.96287071,3113.1,3112.4,3.21295463]
[1768166124081,0.96287071,3113.1,3112.4,4.17196419]
[1768166124266,0.96287071,3113.1,3112.4,0.95900956]
[1768166124977,0.96287071,3113.1,3112.4,1.4015934]
[1768166128181,4.17512005,3113.1,3112.4,1.4015934]
[1768166128482,0.96287071,3113.1,3112.4,1.4015934]
[1768166128683,4.1751172,3113.1,3112.4,1.4015934]
[1768166128985,0.96370786,3112.8,3112.4,0.44258384]
[1768166129184,0.96370786,3112.8,3112.3,0.00080448]
[1768166129484,0.00083715,3112.8,3112.3,0.95981404]
[1768166131766,0.001,3112.5,3112.3,0.95981404]
[1768166132069,0.96370786,3112.8,3112.3,0.00080448]
[1768166132383,0.96370786,3112.8,3112.3,0.66882522]
[1768166133584,0.96370786,3112.8,3112.3,3.88188124]
[1768166134186,0.00083715,3112.8,3112.3,0.66882522]
[1768166135899,0.00083715,3112.8,3112.3,0.00080448]
[1768166139212,0.00083715,3112.8,3111.6,0.99826807]
[1768166139213,0.96317191,3112.7,3111.6,0.99826807]
[1768166139529,0.96397639,3112.7,3111.4,1.00107175]
[1768166139812,0.96397639,3112.7,3111.4,0.00280368]
[1768166139972,0.96317191,3112.5,3111.4,0.00280368]
[1768166140296,0.96317191,3112.3,3111.4,0.00280368]
[1768166140511,0.96317191,3112.1,3111.4,0.00280368]
[1768166141783,0.253,3112.0,3111.4,1.00107175]
[1768166142994,3.21305786,3112.3,3111.4,1.00107175]
[1768166143202,0.96317191,3112.2,3111.4,0.00280368]
[1768166143506,3.46605786,3112.3,3111.8,0.99826807]
[1768166144204,6.4267028,3112.5,3111.8,0.99826807]
[1768166144527,0.96317191,3112.3,3111.7,0.002]
[1768166146292,3.2131611,3112.2,3111.7,0.002]
[1768166147016,7.38949411,3112.2,3111.7,0.002]
[1768166147180,0.73894941,3112.1,3111.7,0.002]
[1768166147914,0.96317191,3112.0,3111.7,0.002]
[1768166148074,0.96317191,3112.0,3111.4,0.00280368]
[1768166148814,3.21344464,3112.0,3111.4,1.00107175]
[1768166149508,7.39006119,3112.0,3111.4,0.00280368]
[1768166149821,0.71657064,3111.9,3111.4,0.00280368]
[1768166150589,7.39006119,3112.0,3111.4,0.00280368]
[1768166150590,0.00080448,3112.7,3111.8,0.99826807]
[1768166150909,0.00080448,3112.7,3112.3,0.99826807]
[1768166151114,0.96317191,3113.3,3112.6,0.99826807]
[1768166151288,0.253,3113.3,3112.6,0.99826807]
[1768166152899,3.46503213,3113.3,3112.6,0.99826807]
[1768166153210,0.34650321,3113.2,3112.6,0.99826807]
[1768166153445,0.96317191,3113.1,3112.4,0.00083723]
[1768166153776,0.34650321,3113.2,3112.4,0.9991053]
[1768166156230,0.001,3112.8,3112.4,0.9991053]
[1768166156428,0.001,3112.8,3112.4,4.21205604]
[1768166156589,0.001,3112.8,3112.5,0.99826807]
[1768166160027,0.254,3113.5,3112.8,0.99826807]
[1768166160237,3.46583787,3113.5,3112.8,0.99826807]
[1768166160402,0.254,3113.5,3112.8,0.99826807]
[1768166160608,3.46583112,3113.5,3112.8,0.99826807]
[1768166161236,4.42900303,3113.5,3112.6,0.99826807]
[1768166161431,0.35269334,3113.4,3112.6,0.99826807]
[1768166162074,0.001,3113.5,3112.8,0.99826807]
[1768166164147,0.001,3113.5,3112.9,0.94632891]
[1768166166455,0.001,3113.5,3112.9,4.15875308]
[1768166166771,0.001,3113.5,3113.0,0.94632891]
[1768166168023,0.001,3113.2,3113.0,0.94632891]
[1768166168224,0.001,3113.5,3113.0,1.68345379]
[1768166168855,0.001,3113.5,3113.1,0.94632891]
[1768166169274,0.001,3113.5,3113.0,0.73712488]
[1768166170782,0.001,3113.5,3113.0,1.73363171]
[1768166171275,0.001,3113.5,3113.0,4.94595549]
[1768166171574,0.001,3113.5,3113.1,1.49110238]
[1768166172681,3.21112997,3114.2,3113.2,0.99650683]
[1768166172682,4.14155343,3114.2,3113.2,0.99650683]
[1768166172882,4.14155343,3114.2,3113.1,0.49459555]
[1768166172883,3.46413894,3114.2,3113.4,0.99650683]
[1768166173083,0.253,3114.2,3113.5,0.99650683]
[1768166173377,1.94396486,3114.2,3113.5,0.99650683]
[1768166173582,1.94396486,3114.2,3113.3,7.67916307]
[1768166173583,1.94396486,3114.2,3113.3,8.6756699]
[1768166173786,1.94396486,3114.2,3113.4,0.99650683]
[1768166174193,0.93035454,3114.1,3113.4,0.99650683]
[1768166175791,4.14162397,3114.1,3113.4,0.99650683]
[1768166175985,0.51552343,3114.0,3113.4,0.99650683]
[1768166179604,0.001,3113.7,3113.4,0.99650683]
[1768166186722,3.46410977,3114.2,3113.4,0.99650683]
[1768166186723,0.253,3114.2,3113.6,0.99650683]
[1768166186900,3.21179884,3114.3,3113.6,0.99650683]
[1768166187215,3.62601418,3114.3,3113.6,0.99650683]
[1768166191907,3.62601418,3114.3,3113.7,0.002]
[1768166192230,0.001,3114.0,3113.7,0.002]
[1768166196217,0.001,3114.0,3113.7,0.96839087]
[1768166197636,0.0008044,3114.3,3113.8,0.96639087]
[1768166197841,0.0008044,3114.3,3113.9,0.96639087]
[1768166202646,3.21127073,3114.9,3114.2,0.96639087]
[1768166202825,3.21055896,3114.8,3114.2,0.96639087]
[1768166203024,0.00080424,3114.9,3114.2,0.96639087]
[1768166204135,3.21118527,3114.9,3114.2,0.96639087]
[1768166205048,0.00080424,3114.9,3114.2,0.96639087]
[1768166205224,0.66823022,3114.9,3114.2,0.96639087]
[1768166206179,0.002,3114.3,3114.2,0.96639087]
[1768166206333,0.66823022,3114.9,3114.2,0.96639087]
[1768166207550,0.00080424,3114.9,3114.3,0.96639087]
[1768166208330,0.002,3115.6,3114.3,0.97606423]
[1768166208530,3.20975766,3115.5,3114.6,0.96639087]
[1768166208731,0.002,3115.6,3114.7,0.96639087]
[1768166209444,0.002,3115.6,3114.8,0.96639087]
[1768166209790,0.002,3115.6,3115.0,0.96639087]
[1768166210666,0.93965403,3115.8,3115.0,0.96639087]
[1768166211334,0.93885011,3115.6,3115.1,0.253]
[1768166212161,3.21026824,3115.8,3115.1,0.253]
[1768166212162,0.00080392,3115.8,3115.1,0.253]
[1768166212362,0.00080392,3115.8,3115.2,0.96639087]
[1768166212570,0.00080392,3115.8,3115.1,4.71228641]
[1768166212571,0.02349552,3116.8,3116.2,0.82661617]
[1768166212755,6.41580854,3117.3,3116.2,5.28590258]
[1768166213063,6.41580854,3117.3,3115.5,0.00083675]
[1768166213064,0.98862355,3117.2,3116.4,0.0008036]
[1768166213262,0.98862355,3117.2,3115.7,0.96639087]
[1768166213263,0.93885011,3116.7,3115.7,0.96639087]
[1768166213564,0.00967336,3116.1,3115.5,0.96722762]
[1768166214018,0.00967336,3116.1,3115.5,0.00083675]
[1768166214019,0.00967336,3115.9,3115.5,0.00083675]
[1768166214316,1.20052347,3115.9,3115.5,0.00083675]
[1768166215311,1.20052347,3115.9,3114.7,3.21050511]
[1768166215312,3.20975766,3115.5,3114.7,0.96639087]
[1768166215761,3.20975766,3115.5,3114.8,0.96639087]
[1768166216291,3.20969711,3115.6,3114.8,0.96639087]
[1768166216795,0.252,3115.6,3114.8,0.96639087]
[1768166217293,6.41911132,3115.7,3114.8,0.96639087]
[1768166218296,3.20955566,3115.7,3115.3,0.96739087]
[1768166218597,3.85258977,3115.7,3115.3,0.96739087]
[1768166219576,0.64303411,3115.7,3115.3,0.96739087]
[1768166219772,0.000804,3115.8,3115.3,0.96739087]
[1768166220457,0.00967336,3115.6,3114.7,0.4429902]
[1768166220663,0.93885011,3115.6,3114.6,0.96639087]
[1768166220895,1.19085011,3115.5,3114.6,0.96639087]
[1768166221093,0.93885011,3115.4,3114.6,0.96639087]
[1768166221627,1.19085011,3115.4,3114.6,0.96639087]
[1768166221904,1.95186605,3115.4,3114.6,0.96639087]
[1768166223372,1.95186605,3115.4,3114.5,0.00080432]
[1768166223373,7.35877755,3115.3,3114.5,0.96719519]
[1768166224214,7.35877755,3115.3,3114.0,0.001]
[1768166224215,0.96263883,3115.2,3114.0,0.001]
[1768166224375,9.62989116,3115.3,3114.0,0.001]
[1768166224376,0.96263883,3114.8,3114.0,0.001]
[1768166224579,0.252,3114.7,3114.0,0.001]
[1768166225703,0.96263883,3114.5,3114.0,0.001]
[1768166228392,0.96263883,3114.3,3114.0,0.001]
[1768166230421,3.46283429,3114.5,3114.1,0.93038837]
[1768166233031,3.21083429,3114.5,3114.1,0.93038837]
[1768166233204,3.46283429,3114.5,3114.1,0.93038837]
[1768166235836,3.46283429,3114.5,3114.0,0.001]
[1768166236561,6.67366858,3114.5,3114.0,0.001]
[1768166237277,3.46283429,3114.5,3114.0,0.001]
[1768166237572,3.46283429,3114.5,3114.0,0.93138837]
[1768166237782,0.252,3114.5,3114.0,0.93138837]
[1768166237942,3.4627894,3114.5,3114.0,0.93138837]
[1768166241068,3.4627894,3114.5,3114.3,0.001]
[1768166241362,3.4627894,3114.5,3114.0,0.001]
[1768166241567,0.91122777,3114.9,3114.0,0.93138837]
[1768166241765,0.253,3114.8,3114.0,0.93138837]
[1768166241989,3.21122962,3114.9,3114.0,0.93138837]
[1768166242268,6.42017192,3115.2,3114.6,0.93038837]
[1768166242473,0.98605954,3115.1,3114.6,0.93038837]
[1768166242781,0.253,3115.1,3114.6,0.93038837]
[1768166243479,0.253,3115.1,3114.5,0.0008044]
[1768166243772,0.253,3115.1,3114.5,0.93119277]
[1768166245586,3.20986069,3115.4,3114.5,0.93119277]
[1768166245893,3.20986069,3115.4,3114.7,0.93038837]
[1768166246049,3.20986069,3115.4,3114.9,0.93038837]
[1768166246380,3.20979915,3115.5,3114.9,0.93038837]
[1768166247908,7.32952669,3115.7,3114.9,0.93038837]
[1768166248188,0.91042345,3115.3,3114.5,0.0008044]
[1768166250162,3.21006676,3115.2,3114.5,0.0008044]
[1768166250904,6.42013352,3115.2,3114.5,0.0008044]
[1768166251104,7.17838922,3115.2,3114.5,0.0008044]
[1768166251306,8.08881267,3115.2,3114.5,0.0008044]
[1768166251477,0.91042345,3115.1,3114.5,0.0008044]
[1768166252595,3.21027287,3115.0,3114.5,0.0008044]
[1768166252962,0.002,3114.9,3114.5,0.0008044]
[1768166257073,0.002,3114.9,3114.5,0.94448556]
[1768166259904,0.002,3114.9,3114.5,0.0008044]
[1768166260109,0.002,3114.9,3114.5,0.94448556]
[1768166262816,0.002,3114.9,3114.5,0.0008044]
[1768166263017,0.92503504,3114.8,3114.3,0.001]
[1768166263719,0.67025105,3114.9,3114.3,0.001]
[1768166264020,1.59528609,3114.9,3114.3,0.001]
[1768166265212,6.420958,3114.8,3114.3,0.001]
[1768166265404,7.24778241,3114.8,3114.3,0.001]
[1768166266913,4.03730341,3114.8,3114.3,0.001]
[1768166268018,0.92503504,3114.7,3114.0,0.001]
[1768166268522,0.96516731,3114.7,3114.0,0.001]
[1768166268823,1.74633001,3114.6,3114.0,0.001]
[1768166269020,6.67357648,3114.5,3114.0,0.001]
[1768166269320,3.46278824,3114.5,3114.0,0.001]
[1768166270117,4.38782328,3114.5,3114.0,0.001]
[1768166270626,4.38782328,3114.5,3113.3,0.0008048]
[1768166270627,0.92503504,3114.4,3113.3,0.0008048]
[1768166270844,0.92503504,3114.2,3113.3,0.93582386]
[1768166270992,4.1362357,3114.1,3113.3,0.93582386]
[1768166271192,7.34743636,3114.1,3113.3,0.93582386]
[1768166271919,0.92503504,3114.0,3113.3,0.93582386]
[1768166272102,0.73474364,3113.9,3113.3,0.93582386]
[1768166273441,3.94620488,3113.9,3113.3,0.93582386]
[1768166274194,3.94620488,3113.9,3113.3,0.0008048]
[1768166274422,0.00080448,3114.3,3113.8,5.39278602]
[1768166274738,0.92783944,3114.9,3114.2,0.93501906]
[1768166274931,4.13826237,3114.9,3114.2,0.93501906]
[1768166275489,7.3486853,3114.9,3114.2,0.93501906]
[1768166275694,0.92503504,3114.8,3114.0,0.93501906]
[1768166279423,0.002,3114.5,3114.0,0.93501906]
[1768166279632,0.002,3114.5,3114.0,1.79552843]
[1768166282303,0.002,3114.5,3114.0,0.93501906]
[1768166282740,0.002,3114.5,3114.1,4.45776696]
[1768166282943,4.13753074,3114.8,3114.1,5.39278602]
[1768166283124,4.13753074,3114.8,3114.1,0.93501906]
[1768166285419,4.13753074,3114.8,3114.0,4.45776696]
[1768166285718,4.13753074,3114.8,3114.0,4.99640494]
[1768166285917,4.13753074,3114.8,3114.0,5.92421319]
[1768166286226,0.9341394,3114.7,3114.0,4.99640494]
[1768166286442,3.20982228,3115.5,3114.0,4.99640494]
[1768166286443,0.9341394,3115.2,3114.5,4.45776696]
[1768166286609,4.39725462,3115.2,3114.5,5.38637969]
[1768166286945,0.9341394,3115.1,3114.5,4.45857144]
[1768166287114,0.9341394,3115.1,3114.5,4.99720941]
[1768166287501,3.21007603,3115.2,3114.5,5.92501766]
[1768166288243,4.14421543,3115.2,3114.5,5.92501766]
[1768166288776,0.9341394,3115.1,3114.5,0.53944245]
[1768166288943,6.42015206,3115.2,3114.5,0.53944245]
[1768166288944,0.9341394,3115.2,3114.5,4.45857144]
[1768166289240,0.9341394,3115.2,3114.5,0.00080448]
[1768166291038,0.002,3114.8,3114.5,0.00080448]
[1768166295629,0.002,3114.8,3114.5,0.92828927]
[1768166295962,0.99879712,3115.7,3114.8,0.92748479]
[1768166296291,3.21032837,3115.8,3115.1,5.38525175]
[1768166296292,0.000804,3115.8,3115.1,5.38525175]
[1768166298243,0.99963387,3115.9,3115.4,4.45776696]
[1768166298446,0.99879712,3116.0,3115.5,0.00083683]
[1768166300473,4.20814273,3115.9,3115.5,0.00083683]
[1768166300675,0.99879712,3115.8,3115.5,0.00083683]
[1768166302440,0.99879712,3116.0,3115.5,0.00083683]
[1768166302864,4.20809471,3116.0,3115.5,0.00083683]
[1768166303066,4.95002354,3116.0,3115.5,0.00083683]
[1768166303377,0.002,3115.7,3115.5,0.00083683]
[1768166311989,0.002,3115.7,3114.8,3.21044537]
[1768166311990,1.04091651,3115.7,3114.4,4.45876696]
[1768166312190,1.04091651,3115.7,3114.6,4.082]
[1768166312487,1.00079712,3115.7,3114.6,4.082]
[1768166312788,0.99879712,3115.5,3114.6,4.082]
[1768166314991,4.11463204,3115.4,3114.6,4.082]
[1768166315192,4.11463204,3115.4,3114.7,0.50102893]
[1768166316093,0.90477135,3115.3,3114.7,0.50102893]
[1768166316996,0.90477135,3115.3,3114.6,0.252]
[1768166317192,0.90477135,3115.2,3114.6,0.252]
[1768166320870,0.90477135,3115.2,3114.5,0.00080448]
[1768166320871,0.90477135,3115.1,3114.5,0.00080448]
[1768166321467,0.90477135,3114.9,3114.5,0.00080448]
[1768166324293,0.90477135,3115.1,3114.5,0.00080448]
[1768166325692,0.90477135,3114.8,3113.9,0.00080456]
[1768166325891,3.21030723,3115.0,3114.5,0.00080456]
[1768166326095,3.46230723,3115.0,3114.5,0.00080456]
[1768166326712,4.36707858,3115.0,3114.5,0.00080456]
[1768166326900,5.20056599,3115.0,3114.5,0.00080456]
[1768166327106,5.20056599,3115.0,3114.8,0.001]
[1768166327801,0.90477135,3114.9,3114.8,0.001]
[1768166328788,0.90557591,3114.9,3113.9,0.25280456]
[1768166329912,0.90477135,3114.7,3113.9,0.00080456]
[1768166330226,6.420958,3114.8,3113.3,0.0008048]
[1768166330227,0.90477135,3114.2,3113.3,0.0008048]
[1768166330391,1.15677135,3114.1,3113.3,0.93582386]
[1768166330713,0.252,3114.2,3113.3,0.93582386]
[1768166331015,10.7936355,3114.8,3113.8,0.93501906]
[1768166331016,3.210479,3114.8,3113.8,0.93501906]
[1768166331216,0.252,3114.7,3114.0,0.94992845]
[1768166332216,3.46264329,3114.7,3114.0,0.94992845]
[1768166332593,0.90477135,3114.6,3113.9,0.00080464]
[1768166334686,0.90477135,3114.4,3113.9,0.00080464]
[1768166336316,4.11550556,3114.6,3113.9,0.00080464]
[1768166338021,0.90477135,3114.6,3113.9,0.00080464]
[1768166338323,4.1154867,3114.6,3113.9,0.00080464]
[1768166338616,0.252,3114.5,3113.9,0.00080464]
[1768166339227,3.46271535,3114.6,3114.0,0.94992845]
[1768166340238,3.21071535,3114.6,3114.0,0.94992845]
[1768166340523,6.6734307,3114.6,3113.9,0.00080464]
[1768166340695,0.90477135,3114.5,3113.9,0.00080464]
[1768166343408,4.11556622,3114.5,3113.9,0.00080464]
[1768166344618,0.252,3114.6,3113.9,0.96223468]
[1768166345535,4.73944192,3114.7,3113.9,0.96223468]
[1768166346522,4.48744192,3114.7,3113.9,0.96223468]
[1768166346829,4.73944192,3114.7,3113.9,0.96223468]
[1768166347426,0.95565319,3114.6,3113.9,0.00080464]
[1768166348127,4.73944192,3114.7,3113.9,0.96223468]
[1768166349651,0.9660318,3114.6,3113.9,0.96223468]
[1768166349935,0.9660318,3114.6,3113.9,0.00080464]
[1768166351538,0.9660318,3114.6,3114.2,0.001]
[1768166351727,0.9660318,3114.5,3114.2,0.001]
[1768166355931,0.9660318,3114.4,3114.2,0.001]
[1768166359537,0.9660318,3114.3,3113.9,0.00080464]
[1768166362641,0.9660318,3114.1,3113.9,0.00080464]
[1768166363915,0.9660318,3114.6,3113.9,0.00080464]
[1768166364512,0.9660318,3114.6,3114.2,0.001]
[1768166365911,1.2190318,3114.7,3114.2,0.001]
[1768166366142,1.2190318,3114.7,3113.9,0.99687101]
[1768166366143,0.9660318,3114.5,3113.6,0.002]
[1768166366310,0.00080464,3114.3,3113.6,0.99806637]
[1768166373560,0.00080464,3114.3,3113.7,0.99606637]
[1768166373724,0.00080464,3114.3,3113.9,0.99606637]
[1768166376179,0.00080464,3114.3,3114.2,0.001]
[1768166377029,1.35262081,3114.2,3113.6,0.002]
[1768166377233,1.12646138,3114.1,3113.6,0.002]
[1768166378661,0.96581883,3113.9,3113.6,0.002]
[1768166380888,3.21151005,3113.8,3113.6,0.002]
[1768166383291,3.21151005,3113.8,3113.3,0.0028048]
[1768166383292,7.38883893,3113.8,3113.3,0.0028048]
[1768166387473,7.38883893,3113.8,3113.6,0.001]
[1768166387661,8.15302282,3113.8,3113.6,0.001]
[1768166388856,0.96581883,3113.7,3113.6,0.001]
[1768166389777,0.96581883,3113.6,3113.3,0.0028048]
[1768166392586,4.17756478,3113.6,3113.3,0.0028048]
[1768166392789,4.17756478,3113.6,3112.1,0.002]
[1768166392790,0.96581883,3113.3,3112.1,0.002]
[1768166392994,0.96581883,3113.3,3112.4,0.96973181]
[1768166393159,1.21881883,3113.2,3112.4,0.96973181]
[1768166393923,0.96581883,3113.1,3112.4,0.96973181]
[1768166394585,3.21233536,3113.0,3112.4,0.96973181]
[1768166397177,3.46533536,3113.0,3112.4,0.96973181]
[1768166397798,0.96581883,3113.3,3112.4,0.96973181]
[1768166397996,0.253,3113.5,3112.6,0.96889458]
[1768166398175,3.21171634,3113.6,3112.6,0.96889458]
[1768166398493,0.253,3113.5,3112.6,0.96889458]
[1768166399694,3.21192265,3113.4,3112.6,0.96889458]
[1768166400092,3.21192265,3113.4,3112.8,0.96889458]
[1768166400465,0.001,3113.3,3112.8,0.96889458]
[1768166401417,0.001,3113.3,3112.9,0.96889458]
[1768166402968,0.96681883,3113.3,3112.7,0.002]
[1768166403166,0.96581883,3113.1,3112.7,0.002]
[1768166403566,0.29315161,3113.2,3112.7,0.002]
[1768166403567,1.00597302,3113.0,3112.7,0.002]
[1768166403801,0.96581883,3113.0,3112.7,0.002]
[1768166403979,3.21243856,3112.9,3112.7,0.002]
[1768166408788,0.93363998,3112.9,3112.7,0.002]
[1768166408995,3.21231198,3113.1,3112.7,0.002]
[1768166409220,0.253,3113.0,3112.7,0.002]
[1768166412492,1.22413218,3113.0,3112.7,0.002]
[1768166412908,0.97113218,3112.9,3112.7,0.002]
[1768166414102,0.97113218,3113.1,3112.7,0.002]
[1768166414618,0.97113218,3113.0,3112.7,0.002]
[1768166416706,0.001,3113.3,3112.7,0.99559453]
[1768166419710,3.21302582,3113.3,3112.7,0.99559453]
[1768166419912,3.97793405,3113.3,3112.7,0.99559453]
[1768166421926,3.97793405,3113.3,3112.7,0.002]
[1768166423226,3.97793405,3113.3,3112.7,0.99559453]
[1768166423412,0.76590823,3113.3,3112.7,0.99559453]
[1768166423723,0.001,3113.3,3112.7,0.99559453]
[1768166424723,0.001,3113.3,3113.0,0.002]
[1768166429241,0.97213218,3113.3,3113.0,0.002]
[1768166429814,4.18418231,3113.3,3113.0,0.002]
[1768166430112,4.94908249,3113.3,3113.0,0.002]
[1768166430314,0.97113218,3113.2,3113.0,0.002]
[1768166433136,3.97795031,3113.3,3113.0,0.002]
[1768166433718,0.97113218,3113.2,3113.0,0.002]
[1768166433919,0.97113218,3113.2,3112.7,0.002]
[1768166436343,0.97113218,3113.2,3113.0,0.002]
[1768166436641,0.52020825,3113.2,3113.0,0.002]
[1768166437952,3.73235774,3113.2,3113.0,0.002]
[1768166438649,4.69012229,3113.2,3113.0,0.002]
[1768166441771,3.73235774,3113.2,3113.0,0.002]
[1768166443274,0.52020825,3113.2,3113.0,0.002]
[1768166444772,3.73233794,3113.2,3113.0,0.002]
[1768166445284,3.73233794,3113.2,3113.0,3.793e-05]
[1768166445779,0.52020825,3113.2,3113.0,3.793e-05]
[1768166454426,3.73234088,3113.2,3113.0,3.793e-05]
[1768166455332,3.73234088,3113.2,3112.7,0.97852769]
[1768166455528,3.21213263,3113.2,3112.7,0.97852769]
[1768166455832,3.46606686,3113.3,3112.7,0.97852769]
[1768166458423,6.67813372,3113.3,3112.7,0.002]
[1768166458624,7.63589827,3113.3,3112.7,0.002]
[1768166459208,7.63589827,3113.3,3113.0,0.002]
[1768166459531,0.76358983,3113.2,3113.0,0.002]
[1768166462262,3.21223218,3113.1,3113.0,0.002]
[1768166465362,3.21223218,3113.1,3113.0,3.842e-05]
[1768166465853,0.76358983,3113.2,3113.0,3.842e-05]
[1768166465854,3.97576866,3113.2,3113.0,3.842e-05]
[1768166471376,7.18794749,3113.2,3113.0,3.842e-05]
[1768166471676,0.83595739,3113.1,3113.0,3.842e-05]
[1768166473678,4.04818957,3113.1,3113.0,3.842e-05]
[1768166474259,0.83595739,3113.1,3113.0,3.842e-05]
[1768166474461,3.21217148,3113.2,3113.0,3.842e-05]
[1768166475350,3.21217148,3113.2,3112.7,0.002]
[1768166480496,6.42435797,3113.2,3112.7,0.002]
[1768166482584,6.42435797,3113.2,3113.0,0.002]
[1768166483595,0.91762642,3113.0,3112.7,0.002]
[1768166484053,3.21227891,3113.1,3112.7,0.002]
[1768166485503,3.21217148,3113.2,3112.7,0.002]
[1768166485804,6.42435797,3113.2,3112.7,0.002]
[1768166485992,7.11515435,3113.2,3112.7,0.002]
[1768166488472,0.91762642,3113.1,3112.4,0.00283723]
[1768166488817,0.00080456,3112.7,3112.1,0.99845452]
[1768166489577,0.91843098,3112.7,3112.1,0.002]
[1768166491503,3.21274818,3112.6,3112.1,0.002]
[1768166492199,0.91762642,3112.5,3112.1,0.002]
[1768166492510,0.91762642,3112.4,3111.7,0.002]
[1768166494413,0.91762642,3112.4,3112.0,0.002]
[1768166494711,0.94173145,3112.6,3112.0,0.002]
[1768166495410,0.00080456,3112.7,3112.0,0.93956702]
[1768166496382,3.21345893,3112.7,3112.0,0.93956702]
[1768166496714,0.00080456,3112.7,3112.0,0.93956702]
[1768166498906,0.00080456,3112.7,3112.1,0.93756702]
[1768166504849,0.94253601,3112.7,3112.0,4.46586939]
[1768166505055,0.00080456,3112.7,3112.2,0.93756702]
[1768166506141,0.001,3112.4,3112.2,0.93756702]
[1768166506343,0.00080456,3112.7,3112.3,0.93756702]
[1768166507445,0.00080456,3112.7,3112.3,1.3526497]
[1768166509752,0.00080456,3112.7,3112.4,0.93756702]
[1768166513057,0.00080456,3112.7,3112.3,0.41508268]
[1768166515558,0.00080456,3112.7,3112.2,0.93756702]
[1768166515757,0.00080456,3112.7,3112.0,7.67918866]
[1768166515961,0.00080456,3112.7,3112.0,8.61675568]
[1768166517664,0.001,3112.4,3112.0,8.61675568]
[1768166517870,0.00080456,3112.7,3112.0,8.61675568]
[1768166518070,0.00080456,3112.7,3112.1,0.86167557]
[1768166521574,0.94173145,3112.6,3112.1,0.86167557]
[1768166521887,0.94173145,3112.6,3112.0,4.46586939]
[1768166521888,0.94173145,3112.6,3112.0,0.002]
[1768166522737,0.94173145,3112.4,3112.0,0.002]
[1768166523657,0.94173145,3112.3,3112.0,0.002]
[1768166524787,0.94234058,3112.6,3112.0,0.002]
[1768166525080,0.94314514,3112.7,3112.0,0.002]
[1768166525275,0.00083723,3112.8,3112.2,0.9933673]
[1768166525574,0.00083723,3112.8,3112.3,0.00080464]
[1768166529273,0.00083723,3112.8,3112.6,0.002]
[1768166531657,1.01910225,3112.8,3112.3,0.00280464]
[1768166534559,4.19075322,3112.7,3112.3,0.00280464]
[1768166534760,0.04015935,3112.6,3112.3,0.00280464]
[1768166535387,1.0182676,3112.6,3112.3,0.00280464]
[1768166535589,0.04015935,3112.6,3112.3,0.00280464]
[1768166538302,4.19151927,3112.8,3112.3,0.00280464]
[1768166538462,3.21341102,3112.8,3112.3,0.00280464]
[1768166541400,3.21341102,3112.8,3112.6,0.002]
[1768166541572,3.97911007,3112.8,3112.3,0.00280464]
[1768166541772,4.95721832,3112.8,3112.3,0.00280464]
[1768166542303,3.97911007,3112.8,3112.3,0.00280464]
[1768166543904,8.16979211,3112.8,3112.3,0.00280464]
[1768166544071,0.97810825,3112.7,3112.3,0.00280464]
[1768166544404,1.79508746,3112.6,3112.0,0.002]
[1768166544568,0.97810825,3112.5,3112.0,0.002]
[1768166545192,4.19164382,3112.7,3112.0,0.002]
[1768166547513,4.19164382,3112.7,3112.0,0.99335743]
[1768166549512,0.00080464,3112.7,3112.0,0.99335743]
[1768166552695,0.00080464,3112.7,3112.1,0.99135743]
[1768166553200,0.00080464,3112.7,3112.3,0.002]
[1768166558631,0.00080464,3112.7,3112.3,0.91224052]
[1768166561036,0.9070364,3113.6,3112.7,0.91024052]
[1768166561337,6.42514302,3113.3,3112.7,0.91024052]
[1768166561633,0.6425143,3113.2,3112.7,0.91024052]
[1768166563332,3.85471639,3113.2,3112.7,0.91024052]
[1768166563937,7.06691848,3113.2,3112.5,0.91024052]
[1768166565033,0.001,3112.9,3112.5,0.91024052]
[1768166576329,0.001,3112.9,3112.8,0.002]
[1768166578459,0.001,3112.9,3112.8,0.91224052]
[1768166579860,0.001,3112.9,3112.8,0.002]
[1768166582333,0.001,3112.9,3112.8,0.91224052]
[1768166583563,0.001,3112.9,3112.8,0.002]
[1768166600214,0.001,3113.3,3112.8,0.002]
[1768166611125,0.001,3113.3,3112.8,0.90719276]
[1768166612431,0.001,3113.0,3112.8,0.90719276]
[1768166612731,0.001,3113.3,3112.9,0.90519276]
[1768166614029,0.001,3113.3,3112.9,1.31717298]
[1768166618960,0.001,3113.3,3113.0,0.95429431]
[1768166623545,0.2538048,3113.7,3113.1,0.95429431]
[1768166625646,3.46543254,3113.7,3113.1,0.95429431]
[1768166627065,0.2538048,3113.7,3113.1,0.95429431]
[1768166627352,0.2538048,3113.7,3113.1,1.41216431]